[Event "Titled Tuesday Blitz March 07 Early 2023"]
[White "Shubenkova, Veronika"]
[Black "Kislov, Oleg"]
[WhiteFideId "44124040"]
[BlackFideId "13503774"]
[WhiteElo "2027"]
[BlackElo "2186"]
[Result "0-1"]
[Round "06"]
[TimeControl "180+2"]
[Date "2023.03.07"]
[WhiteClock "0:00:30"]
[BlackClock "0:00:05"]

1. e4 {[%clk 0:03:00]}  c5 {[%clk 0:02:55]} 2. Nc3 {[%clk 0:03:00]}  Nc6 {[%clk 0:02:55]} 3. g3 {[%clk 0:03:00]}  g6 {[%clk 0:02:54]} 4. Bg2 {[%clk 0:03:00]}  Bg7 {[%clk 0:02:54]} 5. d3 {[%clk 0:03:00]}  d6 {[%clk 0:02:53]} 6. f4 {[%clk 0:03:00]}  e6 {[%clk 0:02:52]} 7. Nf3 {[%clk 0:03:00]}  Nge7 {[%clk 0:02:52]} 8. O-O {[%clk 0:03:00]}  O-O {[%clk 0:02:51]} 9. Be3 {[%clk 0:03:00]}  Nd4 {[%clk 0:02:50]} 10. Rb1 {[%clk 0:02:58]}  Nec6 {[%clk 0:02:44]} 11. Ne2 {[%clk 0:02:57]}  Nxf3+ {[%clk 0:02:41]} 12. Bxf3 {[%clk 0:02:56]}  Nd4 {[%clk 0:02:41]} 13. Nxd4 {[%clk 0:02:56]}  cxd4 {[%clk 0:02:41]} 14. Bf2 {[%clk 0:02:56]}  Bd7 {[%clk 0:02:31]} 15. Bg2 {[%clk 0:02:52]}  Qa5 {[%clk 0:02:27]} 16. a3 {[%clk 0:02:49]}  Rac8 {[%clk 0:02:22]} 17. Qe2 {[%clk 0:02:46]}  Qa4 {[%clk 0:02:16]} 18. Rfc1 {[%clk 0:02:44]}  Rc7 {[%clk 0:02:09]} 19. Be1 {[%clk 0:02:32]}  Rfc8 {[%clk 0:02:03]} 20. b3 {[%clk 0:02:32]}  Qxa3 {[%clk 0:01:54]} 21. Ra1 {[%clk 0:02:28]}  Qb2 {[%clk 0:01:25]} 22. Rab1 {[%clk 0:02:26]}  Qa3 {[%clk 0:01:21]} 23. Ra1 {[%clk 0:02:25]}  Rxc2 {[%clk 0:01:20]} 24. Qxc2 {[%clk 0:02:18]}  Rxc2 {[%clk 0:01:18]} 25. Rxa3 {[%clk 0:02:16]}  Rxc1 {[%clk 0:01:18]} 26. Kf2 {[%clk 0:02:13]}  a6 {[%clk 0:01:16]} 27. b4 {[%clk 0:02:07]}  Bb5 {[%clk 0:01:13]} 28. Bd2 {[%clk 0:02:06]}  Rc2 {[%clk 0:01:11]} 29. Ke2 {[%clk 0:02:06]}  e5 {[%clk 0:01:07]} 30. Kd1 {[%clk 0:01:55]}  Rc7 {[%clk 0:01:05]} 31. Bh3 {[%clk 0:01:53]}  Bh6 {[%clk 0:00:56]} 32. fxe5 {[%clk 0:01:51]}  Bxd2 {[%clk 0:00:48]} 33. exd6 {[%clk 0:01:45]}  Rc3 {[%clk 0:00:42]} 34. d7 {[%clk 0:01:37]}  Bg5 {[%clk 0:00:33]} 35. Rxc3 {[%clk 0:01:32]}  dxc3 {[%clk 0:00:34]} 36. Kc2 {[%clk 0:01:32]}  Kf8 {[%clk 0:00:33]} 37. Kxc3 {[%clk 0:01:30]}  Ke7 {[%clk 0:00:33]} 38. e5 {[%clk 0:01:30]}  Bxd7 {[%clk 0:00:33]} 39. Bf1 {[%clk 0:01:29]}  Bb5 {[%clk 0:00:31]} 40. Bg2 {[%clk 0:01:28]}  Bc6 {[%clk 0:00:30]} 41. Bf1 {[%clk 0:01:28]}  Ke6 {[%clk 0:00:28]} 42. Kd4 {[%clk 0:01:25]}  Bd8 {[%clk 0:00:26]} 43. Bh3+ {[%clk 0:01:24]}  Ke7 {[%clk 0:00:25]} 44. Kc3 {[%clk 0:01:20]}  Bb6 {[%clk 0:00:24]} 45. d4 {[%clk 0:01:20]}  Bd7 {[%clk 0:00:23]} 46. Bg2 {[%clk 0:01:20]}  Bc8 {[%clk 0:00:20]} 47. Kc4 {[%clk 0:01:18]}  Kd7 {[%clk 0:00:19]} 48. h3 {[%clk 0:01:16]}  Kc7 {[%clk 0:00:18]} 49. g4 {[%clk 0:01:15]}  Bd7 {[%clk 0:00:18]} 50. d5 {[%clk 0:01:13]}  Bb5+ {[%clk 0:00:18]} 51. Kc3 {[%clk 0:01:12]}  Kd7 {[%clk 0:00:18]} 52. Be4 {[%clk 0:01:11]}  Bg1 {[%clk 0:00:14]} 53. Bc2 {[%clk 0:01:08]}  b6 {[%clk 0:00:13]} 54. Bb3 {[%clk 0:01:08]}  a5 {[%clk 0:00:13]} 55. bxa5 {[%clk 0:01:06]}  bxa5 {[%clk 0:00:14]} 56. d6 {[%clk 0:01:06]}  Bc5 {[%clk 0:00:13]} 57. Bxf7 {[%clk 0:01:06]}  a4 {[%clk 0:00:12]} 58. Bg8 {[%clk 0:01:05]}  h6 {[%clk 0:00:12]} 59. h4 {[%clk 0:00:59]}  g5 {[%clk 0:00:13]} 60. hxg5 {[%clk 0:00:59]}  hxg5 {[%clk 0:00:14]} 61. Bh7 {[%clk 0:00:59]}  Kd8 {[%clk 0:00:08]} 62. Bf5 {[%clk 0:00:58]}  Bd7 {[%clk 0:00:08]} 63. Be4 {[%clk 0:00:47]}  Bxg4 {[%clk 0:00:06]} 64. Kc4 {[%clk 0:00:47]}  Be3 {[%clk 0:00:04]} 65. Kd5 {[%clk 0:00:47]}  a3 {[%clk 0:00:04]} 66. Bb1 {[%clk 0:00:46]}  Bd1 {[%clk 0:00:02]} 67. Ba2 {[%clk 0:00:46]}  g4 {[%clk 0:00:03]} 68. e6 {[%clk 0:00:46]}  g3 {[%clk 0:00:02]} 69. e7+ {[%clk 0:00:46]}  Kd7 {[%clk 0:00:03]} 70. Ke5 {[%clk 0:00:41]}  g2 {[%clk 0:00:03]} 71. Be6+ {[%clk 0:00:41]}  Ke8 {[%clk 0:00:03]} 72. Bd5 {[%clk 0:00:36]}  Ba4 {[%clk 0:00:03]} 73. Bxg2 {[%clk 0:00:31]}  a2 {[%clk 0:00:03]} 74. Be4 {[%clk 0:00:31]}  a1=Q+ {[%clk 0:00:03]} 75. Ke6 {[%clk 0:00:30]}  Bd7+ {[%clk 0:00:03]} 76. Kd5 {[%clk 0:00:29]}  Qa5+ {[%clk 0:00:03]} 77. Kc4 {[%clk 0:00:29]}  Qc5+ {[%clk 0:00:03]} 78. Kd3 {[%clk 0:00:28]}  Qd4+ {[%clk 0:00:04]} 79. Ke2 {[%clk 0:00:28]}  Qxe4 {[%clk 0:00:04]} 80. Kd1 {[%clk 0:00:29]}  Qd3+ {[%clk 0:00:04]} 81. Ke1 {[%clk 0:00:30]}  Qd2+ {[%clk 0:00:05]} 82. Kf1 {[%clk 0:00:30]}  Bh3# {[%clk 0:00:05]} 0-1


[Site "https://www.chess.com"]

[Event "Titled Tuesday Blitz March 07 Early 2023"]
[White "Begunov, Konstantin"]
[Black "Turzo, Attila"]
[WhiteFideId "4118510"]
[BlackFideId "704954"]
[WhiteElo "2079"]
[BlackElo "2533"]
[Result "0-1"]
[Round "06"]
[TimeControl "180+2"]
[Date "2023.03.07"]
[WhiteClock "0:00:03"]
[BlackClock "0:00:02"]

1. d4 {[%clk 0:02:55]}  Nf6 {[%clk 0:02:57]} 2. c4 {[%clk 0:02:55]}  c5 {[%clk 0:02:58]} 3. Nf3 {[%clk 0:02:55]}  cxd4 {[%clk 0:02:56]} 4. Nxd4 {[%clk 0:02:56]}  Nc6 {[%clk 0:02:57]} 5. Nc3 {[%clk 0:02:56]}  g6 {[%clk 0:02:57]} 6. g3 {[%clk 0:02:56]}  Bg7 {[%clk 0:02:57]} 7. Bg2 {[%clk 0:02:57]}  O-O {[%clk 0:02:56]} 8. O-O {[%clk 0:02:57]}  Qb6 {[%clk 0:02:54]} 9. Nc2 {[%clk 0:02:55]}  d6 {[%clk 0:02:49]} 10. b3 {[%clk 0:02:54]}  Qd8 {[%clk 0:02:41]} 11. Bb2 {[%clk 0:02:52]}  Nd7 {[%clk 0:02:33]} 12. Qd2 {[%clk 0:02:47]}  a5 {[%clk 0:02:31]} 13. Ne3 {[%clk 0:02:43]}  Nc5 {[%clk 0:02:31]} 14. Ned5 {[%clk 0:02:39]}  e6 {[%clk 0:02:23]} 15. Nf4 {[%clk 0:02:31]}  Qe7 {[%clk 0:02:21]} 16. Rfd1 {[%clk 0:02:28]}  Rd8 {[%clk 0:02:21]} 17. Nb5 {[%clk 0:02:14]}  Be5 {[%clk 0:02:15]} 18. Bxc6 {[%clk 0:01:26]}  Bxb2 {[%clk 0:02:12]} 19. Qxb2 {[%clk 0:01:17]}  bxc6 {[%clk 0:02:11]} 20. Nd4 {[%clk 0:01:09]}  Bb7 {[%clk 0:02:07]} 21. Nd3 {[%clk 0:01:05]}  Ne4 {[%clk 0:01:48]} 22. f3 {[%clk 0:00:57]}  Nf6 {[%clk 0:01:43]} 23. c5 {[%clk 0:00:51]}  dxc5 {[%clk 0:01:26]} 24. Nc2 {[%clk 0:00:51]}  Ba6 {[%clk 0:01:20]} 25. Ne3 {[%clk 0:00:35]}  Bxd3 {[%clk 0:01:07]} 26. exd3 {[%clk 0:00:35]}  Nd5 {[%clk 0:01:01]} 27. Ng4 {[%clk 0:00:34]}  f6 {[%clk 0:00:57]} 28. Rac1 {[%clk 0:00:29]}  h5 {[%clk 0:00:42]} 29. Nf2 {[%clk 0:00:28]}  a4 {[%clk 0:00:40]} 30. Ne4 {[%clk 0:00:27]}  axb3 {[%clk 0:00:40]} 31. axb3 {[%clk 0:00:28]}  Ra5 {[%clk 0:00:36]} 32. Ra1 {[%clk 0:00:20]}  Rda8 {[%clk 0:00:34]} 33. Rxa5 {[%clk 0:00:20]}  Rxa5 {[%clk 0:00:35]} 34. Rc1 {[%clk 0:00:19]}  Rb5 {[%clk 0:00:24]} 35. Qa3 {[%clk 0:00:17]}  Nb4 {[%clk 0:00:22]} 36. Qa8+ {[%clk 0:00:14]}  Kg7 {[%clk 0:00:19]} 37. Qc8 {[%clk 0:00:14]}  Nxd3 {[%clk 0:00:18]} 38. Ra1 {[%clk 0:00:14]}  f5 {[%clk 0:00:14]} 39. Ra8 {[%clk 0:00:13]}  fxe4 {[%clk 0:00:08]} 40. Qh8+ {[%clk 0:00:13]}  Kf7 {[%clk 0:00:07]} 41. fxe4 {[%clk 0:00:04]}  e5 {[%clk 0:00:02]} 42. Qg8+ {[%clk 0:00:03]}  Kf6 {[%clk 0:00:02]} 43. Rf8+ {[%clk 0:00:03]}  Kg5 {[%clk 0:00:02]} 0-1


[Site "https://www.chess.com"]

[Event "Titled Tuesday Blitz March 07 Early 2023"]
[White "Santos Flores, Alberto"]
[Black "Jovic, Stanoje"]
[WhiteFideId "3601234"]
[BlackFideId "905020"]
[WhiteElo "2235"]
[BlackElo "2236"]
[Result "1-0"]
[Round "06"]
[TimeControl "180+2"]
[Date "2023.03.07"]
[WhiteClock "0:01:47"]
[BlackClock "0:00:47"]

1. e4 {[%clk 0:03:00]}  c6 {[%clk 0:03:00]} 2. d4 {[%clk 0:03:00]}  d5 {[%clk 0:03:00]} 3. Nc3 {[%clk 0:03:01]}  dxe4 {[%clk 0:02:59]} 4. Nxe4 {[%clk 0:03:01]}  Nf6 {[%clk 0:02:59]} 5. Nxf6+ {[%clk 0:03:01]}  exf6 {[%clk 0:03:00]} 6. c3 {[%clk 0:03:01]}  Bd6 {[%clk 0:03:00]} 7. Bd3 {[%clk 0:03:02]}  O-O {[%clk 0:03:00]} 8. Ne2 {[%clk 0:03:03]}  Qc7 {[%clk 0:03:00]} 9. Ng3 {[%clk 0:02:52]}  Re8+ {[%clk 0:02:56]} 10. Be3 {[%clk 0:02:52]}  Bf4 {[%clk 0:02:48]} 11. Qf3 {[%clk 0:02:51]}  Bxe3 {[%clk 0:02:40]} 12. fxe3 {[%clk 0:02:51]}  c5 {[%clk 0:02:33]} 13. O-O {[%clk 0:02:49]}  cxd4 {[%clk 0:02:23]} 14. exd4 {[%clk 0:02:49]}  Nc6 {[%clk 0:02:20]} 15. Nh5 {[%clk 0:02:48]}  Ne7 {[%clk 0:02:05]} 16. Nxg7 {[%clk 0:02:43]}  Rf8 {[%clk 0:01:46]} 17. Qxf6 {[%clk 0:02:33]}  Nd5 {[%clk 0:01:15]} 18. Qh6 {[%clk 0:02:10]}  f5 {[%clk 0:01:08]} 19. Nxf5 {[%clk 0:02:09]}  Rf6 {[%clk 0:00:48]} 20. Qg5+ {[%clk 0:01:49]}  Rg6 {[%clk 0:00:47]} 21. Nh6+ {[%clk 0:01:47]} 1-0


[Site "https://www.chess.com"]

[Event "Titled Tuesday Blitz March 07 Early 2023"]
[White "Buksa, Nataliya"]
[Black "Jiganchine, Roman"]
[WhiteFideId "14123622"]
[BlackFideId "2603667"]
[WhiteElo "2316"]
[BlackElo "2325"]
[Result "1-0"]
[Round "06"]
[TimeControl "180+2"]
[Date "2023.03.07"]
[WhiteClock "0:02:11"]
[BlackClock "0:01:08"]

1. d4 {[%clk 0:03:00]}  d5 {[%clk 0:02:58]} 2. Nc3 {[%clk 0:03:01]}  Bf5 {[%clk 0:02:54]} 3. Bf4 {[%clk 0:03:01]}  c6 {[%clk 0:02:54]} 4. e3 {[%clk 0:03:02]}  Nd7 {[%clk 0:02:52]} 5. Nf3 {[%clk 0:03:02]}  e6 {[%clk 0:02:52]} 6. Ne5 {[%clk 0:03:03]}  Nxe5 {[%clk 0:02:51]} 7. Bxe5 {[%clk 0:03:03]}  Nf6 {[%clk 0:02:51]} 8. Be2 {[%clk 0:03:02]}  Be7 {[%clk 0:02:50]} 9. g4 {[%clk 0:03:02]}  Bg6 {[%clk 0:02:49]} 10. h4 {[%clk 0:03:03]}  h6 {[%clk 0:02:45]} 11. Qd2 {[%clk 0:03:00]}  b5 {[%clk 0:02:41]} 12. O-O-O {[%clk 0:02:57]}  a5 {[%clk 0:02:34]} 13. g5 {[%clk 0:02:57]}  hxg5 {[%clk 0:02:21]} 14. hxg5 {[%clk 0:02:58]}  Rg8 {[%clk 0:02:19]} 15. gxf6 {[%clk 0:02:57]}  gxf6 {[%clk 0:02:19]} 16. Bg3 {[%clk 0:02:56]}  a4 {[%clk 0:02:18]} 17. Bd3 {[%clk 0:02:53]}  b4 {[%clk 0:02:16]} 18. Ne2 {[%clk 0:02:53]}  b3 {[%clk 0:02:11]} 19. Kb1 {[%clk 0:02:29]}  Qb6 {[%clk 0:01:51]} 20. Bxg6 {[%clk 0:02:29]}  fxg6 {[%clk 0:01:51]} 21. Rh7 {[%clk 0:02:19]}  a3 {[%clk 0:01:48]} 22. cxb3 {[%clk 0:02:17]}  Bb4 {[%clk 0:01:42]} 23. Qc2 {[%clk 0:02:15]}  axb2 {[%clk 0:01:36]} 24. Qxb2 {[%clk 0:02:14]}  Ba3 {[%clk 0:01:32]} 25. Qc2 {[%clk 0:02:14]}  Qb5 {[%clk 0:01:08]} 26. Nf4 {[%clk 0:02:11]} 1-0


[Site "https://www.chess.com"]

[Event "Titled Tuesday Blitz March 07 Early 2023"]
[White "Tsotsonava, Elene"]
[Black "Manukian, Artak"]
[WhiteFideId "13615939"]
[BlackFideId "13301373"]
[WhiteElo "1829"]
[BlackElo "2130"]
[Result "1/2-1/2"]
[Round "06"]
[TimeControl "180+2"]
[Date "2023.03.07"]
[WhiteClock "0:01:18"]
[BlackClock "0:01:09"]

1. b3 {[%clk 0:03:00]}  Nf6 {[%clk 0:02:58]} 2. Bb2 {[%clk 0:03:01]}  g6 {[%clk 0:02:59]} 3. e3 {[%clk 0:03:02]}  Bg7 {[%clk 0:02:58]} 4. f4 {[%clk 0:03:03]}  O-O {[%clk 0:02:58]} 5. Nf3 {[%clk 0:03:03]}  d5 {[%clk 0:02:59]} 6. d3 {[%clk 0:03:03]}  c5 {[%clk 0:03:00]} 7. Ne5 {[%clk 0:02:58]}  Nc6 {[%clk 0:03:01]} 8. Nxc6 {[%clk 0:02:57]}  bxc6 {[%clk 0:03:00]} 9. Be5 {[%clk 0:02:55]}  a5 {[%clk 0:02:59]} 10. a4 {[%clk 0:02:54]}  Ba6 {[%clk 0:02:58]} 11. Nd2 {[%clk 0:02:52]}  Nd7 {[%clk 0:02:43]} 12. Bxg7 {[%clk 0:02:52]}  Kxg7 {[%clk 0:02:44]} 13. Be2 {[%clk 0:02:47]}  e5 {[%clk 0:02:43]} 14. O-O {[%clk 0:02:45]}  exf4 {[%clk 0:02:42]} 15. exf4 {[%clk 0:02:46]}  Qe7 {[%clk 0:02:32]} 16. Bf3 {[%clk 0:02:42]}  Rae8 {[%clk 0:02:30]} 17. Re1 {[%clk 0:02:33]}  Qf6 {[%clk 0:02:30]} 18. Rxe8 {[%clk 0:02:29]}  Rxe8 {[%clk 0:02:30]} 19. g3 {[%clk 0:02:29]}  h5 {[%clk 0:02:29]} 20. Nf1 {[%clk 0:02:29]}  h4 {[%clk 0:02:21]} 21. Rc1 {[%clk 0:02:28]}  hxg3 {[%clk 0:02:20]} 22. hxg3 {[%clk 0:02:29]}  Qd4+ {[%clk 0:02:13]} 23. Kg2 {[%clk 0:02:29]}  Nf6 {[%clk 0:02:12]} 24. Qd2 {[%clk 0:02:28]}  Qb4 {[%clk 0:02:08]} 25. Kf2 {[%clk 0:02:16]}  Qb6 {[%clk 0:02:04]} 26. Kg2 {[%clk 0:02:13]}  c4 {[%clk 0:01:59]} 27. dxc4 {[%clk 0:02:06]}  dxc4 {[%clk 0:01:59]} 28. bxc4 {[%clk 0:02:07]}  Bxc4 {[%clk 0:01:58]} 29. Re1 {[%clk 0:02:07]}  Rxe1 {[%clk 0:01:54]} 30. Qxe1 {[%clk 0:02:08]}  Bxf1+ {[%clk 0:01:54]} 31. Kxf1 {[%clk 0:02:03]}  c5 {[%clk 0:01:50]} 32. Qc3 {[%clk 0:01:55]}  Qb4 {[%clk 0:01:48]} 33. Qxb4 {[%clk 0:01:55]}  cxb4 {[%clk 0:01:48]} 34. Ke2 {[%clk 0:01:55]}  Nd7 {[%clk 0:01:48]} 35. Bc6 {[%clk 0:01:49]}  Nc5 {[%clk 0:01:47]} 36. Ke3 {[%clk 0:01:50]}  Kf6 {[%clk 0:01:40]} 37. Kd4 {[%clk 0:01:50]}  Ne6+ {[%clk 0:01:39]} 38. Kc4 {[%clk 0:01:48]}  g5 {[%clk 0:01:29]} 39. fxg5+ {[%clk 0:01:47]}  Kxg5 {[%clk 0:01:26]} 40. Bf3 {[%clk 0:01:45]}  f5 {[%clk 0:01:24]} 41. Bd1 {[%clk 0:01:42]}  f4 {[%clk 0:01:18]} 42. gxf4+ {[%clk 0:01:42]}  Kxf4 {[%clk 0:01:19]} 43. Kb5 {[%clk 0:01:41]}  Ke3 {[%clk 0:01:17]} 44. Kxa5 {[%clk 0:01:40]}  Kd2 {[%clk 0:01:17]} 45. Kxb4 {[%clk 0:01:38]}  Kxd1 {[%clk 0:01:17]} 46. c4 {[%clk 0:01:39]}  Kd2 {[%clk 0:01:16]} 47. a5 {[%clk 0:01:38]}  Kd3 {[%clk 0:01:14]} 48. a6 {[%clk 0:01:29]}  Kd4 {[%clk 0:01:11]} 49. a7 {[%clk 0:01:30]}  Nc7 {[%clk 0:01:11]} 50. Ka5 {[%clk 0:01:24]}  Kc5 {[%clk 0:01:09]} 51. Ka4 {[%clk 0:01:17]}  Kb6 {[%clk 0:01:08]} 52. c5+ {[%clk 0:01:16]}  Kxa7 {[%clk 0:01:08]} 53. Ka5 {[%clk 0:01:17]}  Kb7 {[%clk 0:01:08]} 54. c6+ {[%clk 0:01:18]}  Kxc6 {[%clk 0:01:09]} 1/2-1/2


[Site "https://www.chess.com"]

[Event "Titled Tuesday Blitz March 07 Early 2023"]
[White "babbilator"]
[Black "Bruned, Yvain"]
[BlackFideId "2250292"]
[WhiteElo "2214"]
[BlackElo "2183"]
[Result "0-1"]
[Round "06"]
[TimeControl "180+2"]
[Date "2023.03.07"]
[WhiteClock "0:00:07"]
[BlackClock "0:01:58"]

1. e4 {[%clk 0:03:00]}  b6 {[%clk 0:03:00]} 2. Nc3 {[%clk 0:02:52]}  Bb7 {[%clk 0:03:01]} 3. d4 {[%clk 0:02:52]}  e6 {[%clk 0:03:01]} 4. Nf3 {[%clk 0:02:51]}  Bb4 {[%clk 0:03:02]} 5. Bd3 {[%clk 0:02:51]}  Nf6 {[%clk 0:03:02]} 6. Qe2 {[%clk 0:02:48]}  d5 {[%clk 0:03:02]} 7. Bg5 {[%clk 0:02:12]}  h6 {[%clk 0:02:56]} 8. Bxf6 {[%clk 0:01:34]}  Qxf6 {[%clk 0:02:57]} 9. e5 {[%clk 0:01:04]}  Qe7 {[%clk 0:02:49]} 10. O-O {[%clk 0:01:01]}  Bxc3 {[%clk 0:02:48]} 11. bxc3 {[%clk 0:01:01]}  O-O {[%clk 0:02:48]} 12. Qe3 {[%clk 0:00:43]}  c5 {[%clk 0:02:22]} 13. a3 {[%clk 0:00:40]}  Rc8 {[%clk 0:02:11]} 14. Rfe1 {[%clk 0:00:33]}  Ba6 {[%clk 0:02:09]} 15. h3 {[%clk 0:00:18]}  Bxd3 {[%clk 0:02:05]} 16. cxd3 {[%clk 0:00:19]}  Nc6 {[%clk 0:02:05]} 17. dxc5 {[%clk 0:00:17]}  bxc5 {[%clk 0:02:06]} 18. Rab1 {[%clk 0:00:14]}  Rab8 {[%clk 0:02:03]} 19. Qd2 {[%clk 0:00:12]}  Qc7 {[%clk 0:02:01]} 20. Qc2 {[%clk 0:00:09]}  Qa5 {[%clk 0:01:59]} 21. Rxb8 {[%clk 0:00:07]}  Rxb8 {[%clk 0:01:58]} 0-1


[Site "https://www.chess.com"]

[Event "Titled Tuesday Blitz March 07 Early 2023"]
[White "Galchenko, Matvey"]
[Black "Avazkhonov, Alikhon"]
[WhiteFideId "24175480"]
[BlackFideId "14208504"]
[WhiteElo "2404"]
[BlackElo "1739"]
[Result "1-0"]
[Round "06"]
[TimeControl "180+2"]
[Date "2023.03.07"]
[WhiteClock "0:02:09"]
[BlackClock "0:00:01"]

1. f4 {[%clk 0:03:00]}  d5 {[%clk 0:02:59]} 2. Nf3 {[%clk 0:03:00]}  Nf6 {[%clk 0:02:59]} 3. g3 {[%clk 0:03:00]}  g6 {[%clk 0:03:00]} 4. Bg2 {[%clk 0:03:00]}  Bg7 {[%clk 0:03:01]} 5. O-O {[%clk 0:03:01]}  O-O {[%clk 0:03:01]} 6. d3 {[%clk 0:03:02]}  c5 {[%clk 0:03:02]} 7. Nc3 {[%clk 0:03:01]}  d4 {[%clk 0:03:01]} 8. Na4 {[%clk 0:03:01]}  Qc7 {[%clk 0:02:41]} 9. c4 {[%clk 0:03:00]}  Nbd7 {[%clk 0:02:37]} 10. a3 {[%clk 0:02:56]}  Rb8 {[%clk 0:02:30]} 11. b4 {[%clk 0:02:55]}  b6 {[%clk 0:02:30]} 12. Rb1 {[%clk 0:02:55]}  Bb7 {[%clk 0:02:29]} 13. e4 {[%clk 0:02:55]}  dxe3 {[%clk 0:02:28]} 14. Bxe3 {[%clk 0:02:56]}  Ng4 {[%clk 0:02:23]} 15. Bd2 {[%clk 0:02:56]}  e5 {[%clk 0:02:24]} 16. Nc3 {[%clk 0:02:55]}  Rfe8 {[%clk 0:02:05]} 17. h3 {[%clk 0:02:52]}  Nh6 {[%clk 0:02:01]} 18. Nb5 {[%clk 0:02:48]}  Qc6 {[%clk 0:01:23]} 19. Ne1 {[%clk 0:02:41]}  Qf6 {[%clk 0:01:17]} 20. fxe5 {[%clk 0:02:40]}  Qxe5 {[%clk 0:01:17]} 21. Bf4 {[%clk 0:02:40]}  Qe7 {[%clk 0:01:07]} 22. Bxb8 {[%clk 0:02:36]}  Rxb8 {[%clk 0:01:08]} 23. Bxb7 {[%clk 0:02:35]}  Rxb7 {[%clk 0:01:09]} 24. Qf3 {[%clk 0:02:33]}  Ne5 {[%clk 0:01:09]} 25. Qe4 {[%clk 0:02:27]}  Nf5 {[%clk 0:01:09]} 26. Rxf5 {[%clk 0:02:22]}  gxf5 {[%clk 0:01:09]} 27. Qxf5 {[%clk 0:02:23]}  a6 {[%clk 0:00:44]} 28. Nc3 {[%clk 0:02:16]}  Rd7 {[%clk 0:00:06]} 29. Nd5 {[%clk 0:02:16]}  Qd6 {[%clk 0:00:06]} 30. Ng2 {[%clk 0:02:12]}  Nc6 {[%clk 0:00:02]} 31. Re1 {[%clk 0:02:08]}  Nd4 {[%clk 0:00:01]} 32. Re8+ {[%clk 0:02:09]}  Bf8 {[%clk 0:00:02]} 33. Qxd7 {[%clk 0:02:09]}  Nf3+ {[%clk 0:00:01]} 34. Kf2 {[%clk 0:02:09]} 1-0


[Site "https://www.chess.com"]

[Event "Titled Tuesday Blitz March 07 Early 2023"]
[White "Pino Perez, Lazaro"]
[Black "Orozbaev, Eldiar"]
[WhiteFideId "3517055"]
[BlackFideId "13802240"]
[WhiteElo "2170"]
[BlackElo "2201"]
[Result "0-1"]
[Round "06"]
[TimeControl "180+2"]
[Date "2023.03.07"]
[WhiteClock "0:00:01"]
[BlackClock "0:00:04"]

1. d4 {[%clk 0:03:00]}  d5 {[%clk 0:02:33]} 2. Bf4 {[%clk 0:02:59]}  c6 {[%clk 0:02:28]} 3. e3 {[%clk 0:02:59]}  Bf5 {[%clk 0:02:24]} 4. c4 {[%clk 0:02:56]}  e6 {[%clk 0:02:22]} 5. Qb3 {[%clk 0:02:57]}  Qb6 {[%clk 0:02:21]} 6. c5 {[%clk 0:02:56]}  Qxb3 {[%clk 0:02:17]} 7. axb3 {[%clk 0:02:57]}  Nd7 {[%clk 0:02:17]} 8. b4 {[%clk 0:02:55]}  f6 {[%clk 0:02:15]} 9. Nf3 {[%clk 0:02:50]}  h5 {[%clk 0:02:14]} 10. h3 {[%clk 0:02:45]}  g5 {[%clk 0:02:14]} 11. Bg3 {[%clk 0:02:43]}  Kf7 {[%clk 0:02:14]} 12. Nc3 {[%clk 0:02:40]}  Ne7 {[%clk 0:02:15]} 13. b5 {[%clk 0:02:38]}  e5 {[%clk 0:02:05]} 14. b4 {[%clk 0:02:32]}  e4 {[%clk 0:02:02]} 15. Nd2 {[%clk 0:02:31]}  Bg7 {[%clk 0:01:53]} 16. Nb3 {[%clk 0:02:17]}  Be6 {[%clk 0:01:36]} 17. Na5 {[%clk 0:02:11]}  f5 {[%clk 0:01:29]} 18. bxc6 {[%clk 0:02:07]}  bxc6 {[%clk 0:01:27]} 19. Ba6 {[%clk 0:01:59]}  f4 {[%clk 0:01:27]} 20. Bh2 {[%clk 0:01:52]}  Rab8 {[%clk 0:00:54]} 21. Rb1 {[%clk 0:01:35]}  Kg6 {[%clk 0:00:41]} 22. O-O {[%clk 0:01:34]}  fxe3 {[%clk 0:00:33]} 23. fxe3 {[%clk 0:01:33]}  Rbf8 {[%clk 0:00:30]} 24. Rxf8 {[%clk 0:01:20]}  Rxf8 {[%clk 0:00:31]} 25. Bd6 {[%clk 0:01:19]}  Nf5 {[%clk 0:00:06]} 26. Bxf8 {[%clk 0:01:07]}  Nxf8 {[%clk 0:00:07]} 27. Nd1 {[%clk 0:00:43]}  Bd7 {[%clk 0:00:06]} 28. Bb7 {[%clk 0:00:41]}  Ne7 {[%clk 0:00:06]} 29. b5 {[%clk 0:00:32]}  cxb5 {[%clk 0:00:07]} 30. c6 {[%clk 0:00:32]}  Bf5 {[%clk 0:00:07]} 31. Rxb5 {[%clk 0:00:22]}  Ne6 {[%clk 0:00:08]} 32. Kf1 {[%clk 0:00:20]}  Nc7 {[%clk 0:00:06]} 33. Rb1 {[%clk 0:00:17]}  g4 {[%clk 0:00:05]} 34. hxg4 {[%clk 0:00:15]}  hxg4 {[%clk 0:00:06]} 35. Nc3 {[%clk 0:00:13]}  g3 {[%clk 0:00:07]} 36. Nb5 {[%clk 0:00:13]}  Nxb5 {[%clk 0:00:04]} 37. Rxb5 {[%clk 0:00:14]}  Bh6 {[%clk 0:00:04]} 38. Ke2 {[%clk 0:00:12]}  Bg4+ {[%clk 0:00:04]} 39. Kd2 {[%clk 0:00:12]}  Nf5 {[%clk 0:00:04]} 40. Rxd5 {[%clk 0:00:10]}  Nxe3 {[%clk 0:00:04]} 41. Rd6+ {[%clk 0:00:09]}  Kg7 {[%clk 0:00:03]} 42. Rxh6 {[%clk 0:00:09]}  Nf1+ {[%clk 0:00:03]} 43. Ke1 {[%clk 0:00:08]}  Ne3 {[%clk 0:00:04]} 44. Rd6 {[%clk 0:00:03]}  Nxg2+ {[%clk 0:00:05]} 45. Kf1 {[%clk 0:00:02]}  Nf4 {[%clk 0:00:05]} 46. c7 {[%clk 0:00:01]}  Bh3+ {[%clk 0:00:04]} 0-1


[Site "https://www.chess.com"]

[Event "Titled Tuesday Blitz March 07 Early 2023"]
[White "Chylewski, Patryk"]
[Black "Zhukova, Natalia"]
[WhiteFideId "1186191"]
[BlackFideId "14101513"]
[WhiteElo "2163"]
[BlackElo "2297"]
[Result "1-0"]
[Round "06"]
[TimeControl "180+2"]
[Date "2023.03.07"]
[WhiteClock "0:01:43"]
[BlackClock "0:00:09"]

1. e4 {[%clk 0:03:00]}  e5 {[%clk 0:02:59]} 2. Nf3 {[%clk 0:03:00]}  Nc6 {[%clk 0:02:59]} 3. d4 {[%clk 0:03:00]}  exd4 {[%clk 0:02:59]} 4. Bc4 {[%clk 0:03:01]}  Bc5 {[%clk 0:02:56]} 5. c3 {[%clk 0:03:00]}  Nf6 {[%clk 0:02:53]} 6. e5 {[%clk 0:03:01]}  d5 {[%clk 0:02:52]} 7. Bb5 {[%clk 0:03:01]}  Nd7 {[%clk 0:02:45]} 8. cxd4 {[%clk 0:03:00]}  Bb6 {[%clk 0:02:40]} 9. O-O {[%clk 0:02:59]}  O-O {[%clk 0:02:40]} 10. Bg5 {[%clk 0:02:51]}  f6 {[%clk 0:02:36]} 11. exf6 {[%clk 0:02:52]}  Nxf6 {[%clk 0:02:36]} 12. Bxc6 {[%clk 0:02:47]}  bxc6 {[%clk 0:02:36]} 13. Ne5 {[%clk 0:02:48]}  Qd6 {[%clk 0:02:19]} 14. Nc3 {[%clk 0:02:45]}  Ne4 {[%clk 0:02:14]} 15. Nxe4 {[%clk 0:02:37]}  dxe4 {[%clk 0:02:15]} 16. Be3 {[%clk 0:02:36]}  Be6 {[%clk 0:01:47]} 17. Qa4 {[%clk 0:02:18]}  Bd5 {[%clk 0:01:43]} 18. Rac1 {[%clk 0:02:15]}  Rf6 {[%clk 0:01:32]} 19. Rc2 {[%clk 0:02:12]}  Re8 {[%clk 0:00:52]} 20. Rfc1 {[%clk 0:02:10]}  Ree6 {[%clk 0:00:53]} 21. Qa6 {[%clk 0:02:00]}  h6 {[%clk 0:00:50]} 22. Qc8+ {[%clk 0:01:57]}  Kh7 {[%clk 0:00:49]} 23. Qd7 {[%clk 0:01:55]}  Qxd7 {[%clk 0:00:18]} 24. Nxd7 {[%clk 0:01:56]}  Rf7 {[%clk 0:00:16]} 25. Ne5 {[%clk 0:01:56]}  Rff6 {[%clk 0:00:16]} 26. b3 {[%clk 0:01:54]}  g5 {[%clk 0:00:13]} 27. Ng4 {[%clk 0:01:50]}  Rg6 {[%clk 0:00:12]} 28. h3 {[%clk 0:01:47]}  Rd6 {[%clk 0:00:08]} 29. Ne5 {[%clk 0:01:43]}  Rde6 {[%clk 0:00:09]} 30. Nxg6 {[%clk 0:01:43]} 1-0


[Site "https://www.chess.com"]